Workbook

Sheet Лист1
E1: № примечания | F1: Бюджет 2013 | K1: Бюджет 2014
B2: Код БК | C2: Наименование статьи | F2: 2013 | G2: 9 мес 2013 | H2: 4 кв 2013 | I2: 2013 | K2: Январь
F3: план | G3: факт | H3: прогноз | I3: прогноз | K3: тыс. руб. | L3: 0 | M3: =L3+1 -> 1 | N3: =M3+1 -> 2 | O3: 3 | P3: 4 | Q3: 5 | R3: 6 | S3: 7
B4: PLR | C4: ВАЛОВАЯ ВЫРУЧКА (Revenue) | D4: итог | F4: =SUBTOTAL(9,F5:F61) -> 1348595 | G4: =SUBTOTAL(9,G5:G61) -> 729739.207 | H4: =SUBTOTAL(9,H5:H61) -> 238989.7195 | I4: =G4+H4 -> 968728.9265 | K4: =(SUBTOTAL(9,K5:K61))/2 -> 19176.69903 | L4: =IF(otst($B5)=L$3,$B5,"") -> R00 | M4: =IF(otst($B5)=M$3,$B5,"") -> 
A5: =otst(B5) -> 0 | B5: R00 | C5: Доходы по основным видам деятельности | D5: сумм | F5: =SUBTOTAL(9,F6:F61) -> 1348595 | G5: =SUBTOTAL(9,G6:G61) -> 729739.207 | H5: =SUBTOTAL(9,H6:H61) -> 238989.7195 | I5: =G5+H5 -> 968728.9265 | K5: =(SUBTOTAL(9,K6:K61))/2 -> 19176.69903 | L5: =IF(otst($B6)=L$3,$B6,"") -> R1 | M5: =IF(otst($B6)=M$3,$B6,"") ->  | N5: =IF(otst($B6)=N$3,$B6,"") ->  | O5: =IF(otst($B6)=O$3,$B6,"") ->  | P5: =IF(otst($B6)=P$3,$B6,"") ->  | Q5: =IF(otst($B6)=Q$3,$B6,"") ->  | R5: =IF(otst($B6)=R$3,$B6,"") ->  | S5: =IF(otst($B6)=S$3,$B6,"") -> 
A6: =otst(B6) -> 0 | B6: R1 | C6: Предоставление услуг МГ телефонной связи | D6: сумм | F6: =SUBTOTAL(9,F7:F23) -> 0 | G6: =SUBTOTAL(9,G7:G23) -> 0 | H6: =SUBTOTAL(9,H7:H23) -> 0 | I6: 0 | K6: =(SUBTOTAL(9,K7:K23))/2 -> 0 | M6: R101
A7: 1 | B7: R101 | C7: Предоставление услуг МГ телефонной связи пользователям | D7: сумм | F7: =SUBTOTAL(9,F8:F13) -> 0 | G7: =SUBTOTAL(9,G8:G13) -> 0 | H7: =SUBTOTAL(9,H8:H13) -> 0 | I7: 0 | K7: =(SUBTOTAL(9,K8:K13))/2 -> 0 | N7: R010101
A8: 2 | B8: R010101 | C8: Предоставление услуг МГ телефонной связи пользователям через агентов | I8: 0 | K8: 0 | N8: R010102
A9: 2 | B9: R010102 | C9: Предоставление МГ телефонного соединения пользователям автоматическим способом | I9: 0 | K9: 0 | N9: R010103
A10: 2 | B10: R010103 | C10: Предоставление МГ телефонного соединения пользователям через телефониста | I10: 0 | K10: 0 | N10: R010104
A11: 2 | B11: R010104 | C11: Предоставление МГ телефонного соединения для пользователей переговорных пунктов | I11: 0 | K11: 0 | N11: R010105
A12: 2 | B12: R010105 | C12: Предоставление МГ телефонного соединения с использованием сервисных карт (СТК) | I12: 0 | K12: 0 | N12: R010106
A13: 2 | B13: R010106 | C13: Предоставление МГ телефонного соединения с таксофонов | I13: 0 | K13: 0 | M13: R102
A14: 1 | B14: R102 | C14: Предоставление МГ услуг присоединения и пропуска трафика | D14: сумм | F14: =SUBTOTAL(9,F15:F15) -> 0 | G14: =SUBTOTAL(9,G15:G15) -> 0 | H14: =SUBTOTAL(9,H15:H15) -> 0 | I14: 0 | K14: =(SUBTOTAL(9,K15:K23))/2 -> 0 | N14: R010201
A15: 2 | B15: R010201 | C15: Организация точки присоединения в телефонной сети на МГ уровне | I15: 0 | K15: 0 | N15: R10202
A16: 2 | B16: R10202 | C16: Услуга МГ инициирования вызова | D16: сумм | F16: =SUBTOTAL(9,F17:F23) -> 0 | G16: =SUBTOTAL(9,G17:G23) -> 0 | H16: =SUBTOTAL(9,H17:H23) -> 0 | I16: 0 | K16: =(SUBTOTAL(9,K17:K23))/2 -> 0 | O16: R1020201
A17: 3 | B17: R1020201 | C17: Международный бесплатный вызов с территории РФ - IFS с территории РФ | D17: сумм | F17: =SUBTOTAL(9,F18:F21) -> 0 | G17: =SUBTOTAL(9,G18:G21) -> 0 | H17: =SUBTOTAL(9,H18:H21) -> 0 | I17: 0 | K17: =(SUBTOTAL(9,K18:K21))/2 -> 0 | P17: R0102020101
A18: =otst(B18) -> 4 | B18: R0102020101 | C18: Организация Номера доступа без задействования ИП (IFS с территории РФ) | I18: 0 | K18: 0 | P18: R0102020102
A19: 4 | B19: R0102020102 | C19: Передача трафика на ИП иностр. оператора без задейст. ИП (IFS с территории РФ) | I19: 0 | K19: 0 | P19: R0102020103
A20: 4 | B20: R0102020103 | C20: Организация Номера доступа с задействованием ИП (IFS с территории РФ) | I20: 0 | K20: 0 | P20: R0102020104
A21: 4 | B21: R0102020104 | C21: Передача трафика на ИП иностр. оператора с задейст. ИП (IFS с территории РФ) | I21: 0 | K21: 0 | O21: R1020202
A22: 3 | B22: R1020202 | C22: Международный бесплатный вызов транзитом через территорию РФ - IFS транзит | D22: сумм | F22: =SUBTOTAL(9,F23:F23) -> 0 | G22: =SUBTOTAL(9,G23:G23) -> 0 | H22: =SUBTOTAL(9,H23:H23) -> 0 | I22: 0 | K22: =(SUBTOTAL(9,K23:K23))/2 -> 0 | P22: R0102020201
A23: 4 | B23: R0102020201 | C23: Организация Номера доступа (IFS транзит) | I23: 0 | K23: 0 | O23: R03020301
A24: 3 | B24: R03020301 | C24: Зоновый транзит - в пределах одного поселения | I24: =G24+H24 -> 0 | K24: 0 | L24: =IF(otst($B25)=L$3,$B25,"") ->  | M24: =IF(otst($B25)=M$3,$B25,"") ->  | N24: =IF(otst($B25)=N$3,$B25,"") ->  | O24: =IF(otst($B25)=O$3,$B25,"") -> R03020302 | P24: =IF(otst($B25)=P$3,$B25,"") ->  | Q24: =IF(otst($B25)=Q$3,$B25,"") ->  | R24: =IF(otst($B25)=R$3,$B25,"") ->  | S24: =IF(otst($B25)=S$3,$B25,"") -> 
A25: 3 | B25: R03020302 | C25: Зоновый транзит - за пределами одного поселения | I25: 0 | K25: 0 | N25: R30204
A26: 2 | B26: R30204 | C26: Предоставление услуг ВНЗ завершения вызова | D26: сумм | F26: =SUBTOTAL(9,F27:F31) -> 329055 | G26: =SUBTOTAL(9,G27:G31) -> 82636.2 | H26: =SUBTOTAL(9,H27:H31) -> 13156.96251 | I26: 95793.16251 | K26: =(SUBTOTAL(9,K27:K31))/2 -> 1063.926593 | O26: R03020401
A27: 3 | B27: R03020401 | C27: Услуги зонового завершения вызова (ЗЗВ) на сеть Оператора | D27: сумм | F27: =SUBTOTAL(9,F28:F28) -> 12000 | G27: =SUBTOTAL(9,G28:G28) -> 7379.968 | H27: =SUBTOTAL(9,H28:H28) -> 2203.598966 | I27: 9583.566966 | K27: =(SUBTOTAL(9,K28:K28))/2 -> 131.6753393 | P27: R0302040101
A28: 4 | B28: R0302040101 | C28: ЗЗВ на сеть Оператора - в пределах одного поселения | F28: 12000 | G28: 7379.968 | H28: 2203.598966 | I28: 9583.566966 | K28: 263.3506787 | O28: R03020402
A29: 3 | B29: R03020402 | C29: Услуга зонового завершения вызова (ЗЗВ) на сеть другого оператора | D29: сумм | F29: =SUBTOTAL(9,F30:F31) -> 317055 | G29: =SUBTOTAL(9,G30:G31) -> 75256.232 | H29: =SUBTOTAL(9,H30:H31) -> 10953.36354 | I29: 86209.59554 | K29: =(SUBTOTAL(9,K30:K31))/2 -> 932.2512534 | P29: R0302040201
B30: R0302040201 | C30: ЗЗВ на сеть другого оператора - в пределах одного поселения | I30: 0 | K30: 0 | P30: R0302040202
B31: R0302040202 | C31: ЗЗВ на сеть другого оператора - за пределами одного поселения | F31: 317055 | G31: 75256.232 | H31: 10953.36354 | I31: 86209.59554 | K31: 1864.502507 | L31: R4
B32: R4 | C32: Предоставление услуг Местной телефонной связи (МТС) | D32: сумм | F32: =SUBTOTAL(9,F33:F61) -> 1019540 | G32: =SUBTOTAL(9,G33:G61) -> 647103.007 | H32: =SUBTOTAL(9,H33:H61) -> 225832.7569 | I32: 872935.7639 | K32: =(SUBTOTAL(9,K33:K61))/2 -> 18112.77244 | M32: R401
B33: R401 | C33: Предоставление услуг Местной телефонной связи пользователям | D33: сумм | F33: =SUBTOTAL(9,F34:F61) -> 1019540 | G33: =SUBTOTAL(9,G34:G61) -> 647103.007 | H33: =SUBTOTAL(9,H34:H61) -> 225832.7569 | I33: 872935.7639 | K33: =(SUBTOTAL(9,K34:K61))/2 -> 18112.77244 | N33: R40101
B34: R40101 | C34: Предоставление услуг Местной телефонной связи в ГТС | D34: сумм | F34: =SUBTOTAL(9,F35:F61) -> 1019540 | G34: =SUBTOTAL(9,G35:G61) -> 647103.007 | H34: =SUBTOTAL(9,H35:H61) -> 225832.7569 | I34: 872935.7639 | K34: =(SUBTOTAL(9,K35:K61))/2 -> 18112.77244 | O34: R401011
B35: R401011 | C35: Услуги местной телефонной связи в городской местности (ГМ) (кроме таксофонов) | D35: сумм | F35: =SUBTOTAL(9,F36:F61) -> 1019540 | G35: =SUBTOTAL(9,G36:G61) -> 647103.007 | H35: =SUBTOTAL(9,H36:H61) -> 225832.7569 | I35: 872935.7639 | K35: =(SUBTOTAL(9,K36:K61))/2 -> 18112.77244 | P35: R040101101
B36: R040101101 | C36: Аб. доступ к МТС незав. от типа аб. л. (проводная или радио-) в ГМ | D36: сумм | F36: =SUBTOTAL(9,F37:F38) -> 24005 | G36: =SUBTOTAL(9,G37:G38) -> 9026.273 | H36: =SUBTOTAL(9,H37:H38) -> 2377.803761 | I36: 11404.07676 | K36: =(SUBTOTAL(9,K37:K38))/2 -> 105.5800886 | Q36: R0401011011
B37: R0401011011 | C37: Доступ к МТС в ГМ в телефониз. пом. незав. от аб.л.(проводная/радио-) | G37: 231.901 | I37: 231.901 | K37: 0 | Q37: R0401011012
B38: R0401011012 | C38: Доступ к МТС в ГМ в нетелефониз пом. незав от аб.л. (проводная/радио-) | F38: 24005 | G38: 8794.372 | H38: 2377.803761 | I38: 11172.17576 | K38: 211.1601771 | P38: R040101102
B39: R040101102 | C39: Организация точки доступа УПАТС в ГМ (ГТС) | D39: сумм | F39: =SUBTOTAL(9,F40:F41) -> 0 | G39: =SUBTOTAL(9,G40:G41) -> 0 | H39: =SUBTOTAL(9,H40:H41) -> 0 | I39: 0 | K39: =(SUBTOTAL(9,K40:K41))/2 -> 0 | Q39: R0401011021
B40: R0401011021 | C40: Организация точки доступа УПАТС в городской местности | I40: 0 | K40: 0 | Q40: R0401011022
B41: R0401011022 | C41: Организация линии доступа для УПАТС ГТС на средствах сторонних организаций | I41: 0 | K41: 0 | P41: R040101103
B42: R040101103 | C42: Предоставление абоненту в пост. польз. аб.л. незав. от ее типа в ГМ (ГТС) | D42: сумм | F42: =SUBTOTAL(9,F43:F47) -> 0 | G42: =SUBTOTAL(9,G43:G47) -> 55.82 | H42: =SUBTOTAL(9,H43:H47) -> 0 | I42: 55.82 | K42: =(SUBTOTAL(9,K44:K47))/2 -> 0 | Q42: R0401011031
B43: R0401011031 | C43: Пред. в пост. польз. аб.л. незав. от ее типа в ГМ с аб. сист. опл. (отсут. СПУС) | I43: 0 | K43: 0 | Q43: R0401011032
B44: R0401011032 | C44: Пред. в пост. польз. аб.л. незав. от ее типа в ГМ с аб. сист. опл. (нал. СПУС) | I44: 0 | K44: 0 | Q44: R0401011033
B45: R0401011033 | C45: Пред. в пост. польз. аб.л. незав. от ее типа в ГМ при поврем. системе оплаты | G45: 32.809 | I45: 32.809 | K45: 0 | Q45: R0401011034
B46: R0401011034 | C46: Пред. в пост. польз. аб.л. незав. от ее типа в ГМ при комб (обяз. ТП) сист. опл | G46: 23.011 | I46: 23.011 | K46: 0 | Q46: R0401011035
B47: R0401011035 | C47: Пред. в пост. польз. аб.л. незав. от ее типа в ГМ при комб (необяз ТП) сист. опл | I47: 0 | K47: 0 | P47: R040101104
B48: R040101104 | C48: Предоставление мест. тел. соединения (кроме соединений с таксофонов) в ГМ (ГТС) | D48: сумм | F48: =SUBTOTAL(9,F49:F55) -> 940235 | G48: =SUBTOTAL(9,G49:G55) -> 629618.557 | H48: =SUBTOTAL(9,H49:H55) -> 223454.9532 | I48: 853073.5102 | K48: =(SUBTOTAL(9,K49:K55))/2 -> 18007.19235 | Q48: R0401011041
B49: R0401011041 | C49: Мест. тел. соед. (кр. таксофонов) в ГМ с аб.сист.опл. (отсут. СПУС (ГТС)) | I49: 0 | K49: 0 | Q49: R0401011042
B50: R0401011042 | C50: Мест.тел.соед. (кр.соед. с таксофонов) в ГМ с аб.сист.опл. (нал. СПУС) (ГТС) | F50: 794325 | G50: 563405.551 | H50: =186533.062684604+15000 -> 201533.0627 | I50: 764938.6137 | K50: 32460.82685 | Q50: R0401011043
B51: R0401011043 | C51: Мест. тел.соед. (кр.соед. с таксофонов) в ГМ аб. с поврем. системой оплаты (ГТС) | F51: =145910-F52 -> 75288.7 | G51: 25905.401 | H51: 8576.79478 | I51: 34482.19578 | K51: 1453.958353 | Q51: R0401011044
B52: R0401011044 | C52: Мест. тел. соед. (кр. такс.) в ГМ с комб. (обяз. ТП) сист. опл. (баз. V тр-ка) | F52: 70621.3 | G52: 40307.605 | H52: 13345.09573 | I52: 53652.70073 | K52: 2099.599499 | Q52: R0401011045
B53: R0401011045 | C53: Мест.тел.соед. (кр.такс.) в ГМ с комб. (обяз. ТП) сист.опл. (сверх баз. V тр-ка) | I53: 0 | K53: 0 | Q53: R0401011046
B54: R0401011046 | C54: Мест.тел.соед. (кр.такс.) в ГМ с комб. (необяз. ТП) сист.опл. (баз. V тр-ка) | I54: 0 | K54: 0 | Q54: R0401011047
B55: R0401011047 | C55: Мест.тел.соед.(кр.такс.) в ГМ с комб.(необяз. ТП) сист.опл. (сверх баз. V тр-ка) | I55: 0 | K55: 0 | P55: R040101105
B56: R040101105 | C56: Предоставление мест.тел.соед абонентам, включая линии доступа УПАТС в ГМ (ГТС) | D56: сумм | F56: =SUBTOTAL(9,F57:F58) -> 0 | G56: =SUBTOTAL(9,G57:G58) -> 0 | H56: =SUBTOTAL(9,H57:H58) -> 0 | I56: 0 | K56: =(SUBTOTAL(9,K57:K58))/2 -> 0 | Q56: R0401011051
B57: R0401011051 | C57: Предоставление местного соединения абонентам УПАТС в городской местности (ГТС) | I57: 0 | K57: 0 | Q57: R0401011052
B58: R0401011052 | C58: Предоставление в польз. линии доступа для УПАТС ГТС на средствах стор. орг-ций | I58: 0 | K58: 0 | P58: R040101106
B59: R040101106 | C59: Организация и предоставление в пользование прямых проводов ГТС | D59: сумм | F59: =SUBTOTAL(9,F60:F61) -> 55300 | G59: =SUBTOTAL(9,G60:G61) -> 8402.357 | H59: =SUBTOTAL(9,H60:H61) -> 0 | I59: 8402.357 | K59: =(SUBTOTAL(9,K60:K61))/2 -> 0 | Q59: R0401011061
B60: R0401011061 | C60: Организация прямых проводов ГТС | F60: 55300 | G60: 8402.357 | I60: 8402.357 | K60: 0 | Q60: R0401011062
B61: R0401011062 | C61: Предоставление в пользование прямых проводов ГТС | I61: 0 | K61: 0 | L61: 0

Sheet Лист2

Sheet Лист3
